lending/lending_fUSD_20240131
["ID","MTS","AMOUNT","RATE_DAILY","PERIOD"]
[313045925,1706689845773,-151.0131,0.00039548,10]
[313045926,1706689845783,-225.10275117,0.00039578,4]
[313045927,1706689845792,-200.0,0.00039642,7]
[313045928,1706689845802,-800.0,0.00039642,8]
[313045929,1706689845811,-200.0,0.00039643,7]
[313045930,1706689845820,-800.0,0.00039643,8]
[313045931,1706689845830,-151.0131,0.00039648,10]
[313045932,1706689845842,-3200.0,0.000397,14]
[313045933,1706689845851,-4550.04,0.000397,4]
[313045934,1706689845861,-151.0131,0.00039748,10]
[313045935,1706689845870,-4300.0,0.000398,14]
[313045936,1706689845879,-195.54136112,0.00039873,2]
[313045937,1706689845889,-743.75328716,0.00039873,2]
[313045938,1706689845898,-5000.0,0.0003988,3]
[313045939,1706689845907,-21229.28097619,0.00039888,6]
[313045940,1706689845921,-2926.5628183,0.00039888,6]
[313045941,1706689845971,-57029.62175001,0.00039888,6]
[313045942,1706689845980,-158.18194823,0.0003989,2]
[313045943,1706689845990,-731.93701969,0.00039898,15]
[313045944,1706689846022,-776.99749995,0.00039898,15]
[313045945,1706689846033,-338.39194989,0.00039898,15]
[313045946,1706689846045,-951.67261507,0.00039898,15]
[313045947,1706689846056,-312.92420508,0.00039898,15]
[313045960,1706689846436,-402.40279773,0.00039898,15]
[313045962,1706689846452,-1780.43176568,0.00039898,15]
[313045964,1706689846464,-16539.31896509,0.00039898,15]
[313045965,1706689846475,-39284.97308521,0.00039898,15]
[313045966,1706689846487,-8880.95009661,0.00039898,15]
[313045967,1706689846496,-154.10748654,0.000399,11]
[313045968,1706689846508,-333.70314074,0.000399,11]
[313045969,1706689846522,-485.69793582,0.000399,11]
[313045970,1706689846533,-1005.3197599,0.000399,11]
[313045971,1706689846543,-5300.0,0.000399,14]
[313045972,1706689846552,-2120.4185928,0.000399,2]
[313045973,1706689846561,-2120.41859264,0.000399,2]
[313045974,1706689846571,-2120.41859264,0.000399,2]
[313045975,1706689846581,-2120.41859264,0.000399,2]
[313045976,1706689846592,-2120.41859264,0.000399,2]
[313045977,1706689846601,-2120.41859264,0.000399,2]
[313045978,1706689846610,-2120.41859264,0.000399,2]
[313045979,1706689846619,-2120.41859264,0.000399,2]
[313045980,1706689846629,-2120.41859264,0.000399,2]
[313045981,1706689846638,-2120.41859264,0.000399,2]
[313045982,1706689846647,-2120.41859264,0.000399,2]
[313045983,1706689846657,-2120.41859264,0.000399,2]
[313045984,1706689846667,-2120.41859264,0.000399,2]
[313045985,1706689846677,-742.33797206,0.000399,2]
[313045986,1706689846690,-1378.08062058,0.000399,2]
[313045987,1706689846699,-2120.41859264,0.000399,2]
[313045988,1706689846709,-2120.41859264,0.000399,2]
[313045989,1706689846718,-2120.41859264,0.000399,2]
[313045990,1706689846729,-151.05979893,0.00039962,2]
[313045991,1706689846738,-884.3125996,0.00039962,2]
[313045992,1706689846750,-17480.40620442,0.00039969,6]
[313045993,1706689846762,-3799.20605415,0.00039969,6]
[313045994,1706689846779,-1157.25362323,0.00039969,6]
[313045995,1706689846794,-1109.59771516,0.00039969,6]
[313045996,1706689846963,-736.26116918,0.00039969,6]
[313045997,1706689847021,-20518.24749346,0.00039969,6]
[313045998,1706689847033,-5539.74377319,0.00039969,6]
[313045999,1706689847431,-419.59727266,0.00039969,6]
[313046000,1706689847442,-444.7430055,0.00039969,6]
[313046001,1706689847455,-404.48230813,0.00039969,6]
[313046002,1706689847466,-2861.5891611,0.00039969,6]
[313046003,1706689928006,1000.0,0.00021998,2]
[313046004,1706689986954,102.31659414,0.00021998,2]
[313046005,1706689986976,647.68340586,0.00021998,2]
[313046006,1706690181515,1352.31659414,0.00022174,2]
[313046007,1706690181537,865.12340586,0.00022174,2]
[313046008,1706690185473,200.0,0.00021998,2]
[313046009,1706690210995,934.87659414,0.00021998,2]
[313046010,1706690211020,4.08340586,0.00021998,2]
[313046011,1706690243571,369.22,0.00021998,2]
[313046012,1706690306273,362.7,0.00021998,2]
[313046013,1706690452638,-691.30186984,0.00022896,2]
[313046014,1706690452659,-500.0,0.00022897,2]
[313046015,1706690452681,-300.0,0.00022898,2]
[313046016,1706690452701,-398.2803,0.00022899,2]
[313046017,1706690957115,-1000.0,0.00024745,2]
[313046018,1706690957136,-8942.16437474,0.00024746,2]
[313046019,1706690957156,-1605.44331852,0.00024747,2]
[313046020,1706690957176,-164.06960714,0.00028473,2]
[313046021,1706690957196,-164.46,0.00029751,2]
[313046022,1706690957216,-21.64516637,0.0003,4]
[313046034,1706691031561,-1559.89357429,0.0003,4]
[313046035,1706691031570,-500.0,0.0003,2]
[313046036,1706691031579,-155.0,0.00033852,2]
[313046037,1706691031589,-122.69528534,0.00033853,2]
[313046038,1706691031600,-2171.38671466,0.00033853,2]
[313046039,1706691031609,-1037.055,0.00033853,2]
[313046040,1706691031618,-324.937,0.00033853,2]
[313046041,1706691031627,-1038.504,0.00033853,2]
[313046042,1706691031636,-1090.864,0.00033853,2]
[313046043,1706691031645,-152.54,0.00035726,2]
[313046044,1706691031654,-71.5880675,0.000362,2]
[313046045,1706691031681,-928.4119325,0.000362,2]
[313046046,1706691031690,-200.0,0.00036754,2]
[313046047,1706691031699,-400.0,0.0003693,3]
[313046048,1706691031708,-200.0,0.00036931,2]
[313046049,1706691031718,-6.8617881,0.00036931,2]
[313046050,1706691031730,-1845.5582119,0.00036931,2]
[313046051,1706691031739,-577.19522903,0.00036931,2]
[313046068,1706691038102,-2.19477097,0.00036931,2]
[313046069,1706691038112,-3234.19,0.00036931,2]
[313046070,1706691038121,-7458.51,0.00036931,2]
[313046071,1706691038131,-508.46,0.00037165,2]
[313046072,1706691038142,-156.37,0.00037189,2]
[313046073,1706691038152,-170.88,0.00037219,2]
[313046074,1706691038162,-250.0,0.0003759,111]
[313046075,1706691038171,-166.46,0.0003779,2]
[313046076,1706691038181,-153.0,0.000378,3]
[313046077,1706691038192,-153.0,0.000378,3]
[313046078,1706691038201,-153.0,0.000378,3]
[313046079,1706691038211,-153.0,0.000378,3]
[313046080,1706691038220,-2138.45876184,0.00037802,2]
[313046083,1706691040164,-666.04123816,0.00037802,2]
[313046084,1706691040173,-250.0,0.00037809,2]
[313046085,1706691040183,-319.85,0.00037818,2]
[313046086,1706691040192,-153.92,0.00037819,2]
[313046087,1706691040201,-179.13,0.00037832,10]
[313046088,1706691040211,-1676.73743578,0.00037832,34]
[313046089,1706691040223,-559.04037576,0.00037832,34]
[313046094,1706691042628,-389.85218846,0.00037832,34]
[313046095,1706691042638,-197.14781154,0.00037837,2]
[313046115,1706691045631,-602.85218846,0.00037837,2]
[313046117,1706691045640,-152.49102744,0.00037981,2]
[313046119,1706691045649,-1661.39,0.00037989,2]
[313046121,1706691045658,-150.0,0.00038011,2]
[313046123,1706691045668,-153.92,0.000381,2]
[313046125,1706691045677,-200.0,0.00038163,2]
[313046127,1706691045687,-492.0,0.0003833,5]
[313046129,1706691045696,-210.0,0.00038333,2]
[313046131,1706691045706,-151.0131,0.00038348,10]
[313046133,1706691045716,-153.92,0.00038382,2]
[313046134,1706691045725,-1052.04857267,0.00038388,2]
[313046135,1706691045735,-152.54,0.00038414,2]
[313046136,1706691045744,-151.0131,0.00038448,10]
[313046137,1706691045753,-151.0131,0.00038548,10]
[313046138,1706691045762,-579.39,0.00038574,2]
[313046139,1706691045771,-151.0131,0.00038648,10]
[313046140,1706691045781,-153.92,0.00038663,2]
[313046141,1706691045790,-151.0131,0.00038748,12]
[313046142,1706691045800,-7885.08986798,0.000388,4]
[313046143,1706691045813,-9673.0706076,0.000388,4]
[313046144,1706691045823,-151.0131,0.00038848,12]
[313046145,1706691045832,-1000.0,0.000389,2]
[313046146,1706691045841,-153.92,0.00038945,2]
[313046147,1706691045850,-151.0131,0.00038948,12]
[313046148,1706691045860,-649.26,0.00038974,2]
[313046149,1706691045870,-151.0131,0.00039048,12]
[313046150,1706691045880,-151.0131,0.00039148,12]
[313046151,1706691045889,-2009.44,0.000392,2]
[313046152,1706691045899,-152.0,0.00039203,3]
[313046153,1706691045908,-4082.0,0.00039204,2]
[313046154,1706691045918,-153.92,0.00039226,2]
[313046155,1706691045928,-151.0131,0.00039248,12]
[313046156,1706691045938,-512.0,0.0003926,2]
[313046157,1706691045947,-151.0131,0.00039348,12]
[313046158,1706691045957,-151.0131,0.00039448,12]
[313046159,1706691045966,-153.92,0.00039508,2]
[313046160,1706691045976,-151.0131,0.00039548,12]
[313046161,1706691045986,-150.0,0.00039632,2]
[313046162,1706691045995,-200.0,0.00039643,7]
[313046163,1706691046005,-151.0131,0.00039648,12]
[313046164,1706691046015,-151.0131,0.00039748,12]
[313046165,1706691046025,-880.2585,0.0003977,2]
[313046166,1706691046034,-2112.57989241,0.0003977,2]
[313046167,1706691046071,-1185.00000028,0.0003977,2]
[313046168,1706691046083,-2157.5,0.0003977,2]
[313046169,1706691069719,810.41783016,0.00023,2]
[313046170,1706691069747,810.41783016,0.00023,2]
[313046171,1706691069774,810.41783016,0.00023,2]
[313046172,1706691069828,810.41783016,0.00023,2]
[313046173,1706691069858,810.41783016,0.00023,2]
[313046174,1706691069886,810.41783016,0.00023,2]
[313046175,1706691069913,810.41783016,0.00023,2]
[313046176,1706691069937,28110.41783016,0.00023,2]
[313046181,1706691213427,304.74826577,0.00021,2]
[313046182,1706691402832,301.856441,0.00022685,2]
[313046183,1706691474151,657.39188737,0.00022685,2]
[313046184,1706691474174,374.63660815,0.00022685,2]
[313046185,1706691476059,155.38878255,0.00020417,2]
[313046186,1706691487615,1218.96930677,0.00022685,2]
[313046187,1706691506369,251.00530253,0.00022685,2]
[313046188,1706691506392,56.2043861,0.00022685,2]
[313046189,1706691507603,375.67599678,0.00022685,2]
[313046190,1706691517610,832.69600639,0.00022685,4]
[313046191,1706691525073,400.82572959,0.00022458,2]
[313046192,1706691541078,155.0,0.00022685,2]
[313046193,1706691541421,159.50467416,0.00022685,2]
[313046194,1706691543616,20.09320698,0.00022685,2]
[313046195,1706691543636,1078.71546336,0.00022685,2]
[313046196,1706691545229,158.13808395,0.00022685,2]
[313046197,1706691548819,364.99703045,0.00022685,2]
[313046198,1706691549762,155.79533255,0.00022685,2]
[313046199,1706691552720,242.35408969,0.00022685,2]
[313046200,1706691552741,2000.0,0.00022685,2]
[313046201,1706691552763,200.71690501,0.00022685,2]
[313046202,1706691554048,156.22271469,0.00020417,2]
[313046203,1706691561379,1230.05062968,0.00020698,2]
[313046204,1706691562670,413.00975062,0.00022685,2]
[313046205,1706691562690,2000.0,0.00022685,2]
[313046206,1706691562711,488.9622463,0.00022685,2]
[313046207,1706691565756,265.82049859,0.00022685,2]
[313046208,1706691579068,155.0,0.00022685,2]
[313046209,1706691581862,284.18685088,0.00022685,2]
[313046210,1706691583152,155.4515756,0.00022685,2]
[313046211,1706691583377,650.57882863,0.00020698,2]
[313046212,1706691583398,579.47180105,0.00020698,2]
[313046213,1706691589068,1420.52819895,0.00022458,2]
[313046214,1706691589093,6.14339612,0.00022458,2]
[313046215,1706691601471,237.74449861,0.00020698,2]
[313046216,1706691611288,1988.27473803,0.00022458,2]
[313046217,1706691617369,1228.7364261,0.00020698,2]
[313046218,1706691635386,1228.7364261,0.00020698,2]
[313046219,1706691653503,2328.73849707,0.00020698,2]
[313046220,1706691664869,155.0,0.00020698,2]
[313046221,1706691669205,1819.58132714,0.00020698,2]
[313046222,1706691673477,160.04469083,0.0002257,2]
[313046223,1706691680877,155.31271408,0.00020698,2]
[313046224,1706691686325,224.65744632,0.00020698,2]
[313046225,1706691748395,1954.582436,0.00022456,2]
[313046229,1706691964349,2204.06733357,0.00022078,2]
[313046231,1706692122056,1500.0,0.00021753,2]
[313046232,1706692132344,3197.13386433,0.00022078,2]
[313046233,1706692132991,164.46,0.00020809,2]
[313046234,1706692152341,316.05520571,0.00022078,2]
[313046259,1706692231738,-691.30186984,0.00022654,2]
[313046260,1706692231748,-550.72613016,0.00022655,2]
[313046261,1706692231907,-2076.66370281,0.00022655,2]
[313046262,1706692231917,-310.97245185,0.00022655,2]
[313046263,1706692231926,-475.36871165,0.00022656,2]
[313046264,1706692233424,-524.63128835,0.00022656,2]
[313046265,1706692233434,-358.43337229,0.00022656,2]
[313046266,1706692233443,-630.55738904,0.00022657,2]
[313046267,1706692233453,-155.0,0.00022657,2]
[313046268,1706692233462,-231.19645514,0.00022657,2]
[313046297,1706692237771,-235.74772915,0.00022653,2]
[313046299,1706692237780,-107.08219308,0.00022657,2]
[313046306,1706692237868,-161.72135178,0.00022657,2]
[313046307,1706692237877,-737.01092882,0.00022658,2]
[313046308,1706692237888,-486.69899431,0.00022658,2]
[313046309,1706692237896,-139.44399122,0.00022662,2]
[313046310,1706692237926,-10.55600878,0.00022662,2]
[313046311,1706692237935,-4111.0709563,0.00022683,2]
[313046312,1706692237944,-155.42527609,0.00022685,2]
[313046313,1706692237953,-1243.26452789,0.00022685,2]
[313046314,1706692237962,-1366.3907283,0.00022899,2]
[313046315,1706692237971,-3985.12475905,0.000229,2]
[313046316,1706692238040,-428.32625124,0.000229,2]
[313046317,1706692238111,-791.20988971,0.000229,2]
[313046318,1706692238121,-23424.0184,0.000229,2]
[313046319,1706692238130,-200.1872,0.000229,2]
[313046320,1706692238139,-251.8252,0.000229,2]
[313046321,1706692238149,-924.0091,0.000229,2]
[313046322,1706692238158,-300.0,0.000229,8]
[313046324,1706692238167,-996.56657017,0.00022997,2]
[313046326,1706692238177,-4330.51814004,0.00022998,2]
[313046328,1706692238186,-155.7231014,0.00022998,2]
[313046330,1706692238195,-248.98694023,0.00022998,2]
[313046332,1706692238204,-155.75501676,0.00022998,2]
[313046335,1706692238214,-524.28228198,0.00022998,2]
[313046337,1706692238223,-1157.75991458,0.00022998,2]
[313046339,1706692238234,-155.0,0.00022998,2]
[313046341,1706692238243,-269.71097247,0.00022998,2]
[313046343,1706692238252,-155.84690732,0.00022998,2]
[313046345,1706692238262,-206.12359319,0.00022998,2]
[313046347,1706692238271,-4642.46202328,0.00022998,2]
[313046349,1706692238281,-283.75575974,0.00022998,2]
[313046350,1706692238290,-463.32371698,0.00022998,2]
[313046353,1706692238299,-156.11983464,0.00022998,2]
[313046354,1706692238308,-8530.77204011,0.00022998,2]
[313046356,1706692238318,-1048.28635536,0.00022998,2]
[313046359,1706692238327,-285.72144979,0.00022998,2]
[313046361,1706692238337,-178.72127769,0.00022998,2]
[313046363,1706692238347,-155.9650335,0.00022998,2]
[313046365,1706692238356,-355.01316218,0.00022998,2]
[313046367,1706692238365,-7126.57464017,0.00022998,2]
[313046369,1706692238374,-250.0757698,0.00022998,2]
[313046371,1706692238383,-1431.72198165,0.00022998,2]
[313046373,1706692238392,-330.21302046,0.00022998,2]
[313046375,1706692238402,-2333.80932134,0.00022998,2]
[313046377,1706692238411,-2151.72993286,0.00022999,2]
[313046379,1706692238421,-281.66981633,0.00022999,2]
[313046381,1706692238431,-8916.45628302,0.00022999,2]
[313046391,1706692238526,-10372.50734004,0.00022999,2]
[313046393,1706692238536,-1627.49153269,0.00023,2]
[313046570,1706692240326,-365.49689089,0.00023,2]
[313046571,1706692240337,-678.342508,0.00023,2]
[313046572,1706692240348,-8421.80980072,0.00023,2]
[313046573,1706692240359,-484.29600592,0.00023,2]
[313046576,1706692240389,-261.2807724,0.00023,2]
[313046578,1706692240404,-541.16397787,0.00023,2]
[313046581,1706692240415,-2283.81170497,0.00023,2]
[313046586,1706692240454,-1322.0,0.00023,2]
[313046588,1706692240466,-357.71235685,0.00023,2]
[313046591,1706692240489,-5673.27600982,0.00023,2]
[313046594,1706692240501,-936.54500001,0.00023,2]
[313046596,1706692240513,-950.88422646,0.00023,2]
[313046628,1706692240781,-1196.63849997,0.00023,2]
[313046632,1706692240820,-20000.0,0.00023,2]
[313046634,1706692240831,-384.5838736,0.00023,2]
[313046671,1706692241166,-225297.92202207,0.00023,2]
[313046714,1706692242774,-3786.77823733,0.00023,2]
[313046715,1706692242786,-8144.52319297,0.00023,2]
[313046716,1706692242830,-764.32894886,0.00023,2]
[313046717,1706692243002,-311.87888583,0.00022999,2]
[313046718,1706692243012,-496.5517187,0.00023,2]
[313046719,1706692243024,-617.13270598,0.00023,2]
[313046728,1706692245826,-155.0,0.00022998,2]
[313046729,1706692245835,-2662.7628045,0.00022999,2]
[313046730,1706692245844,-235.559642,0.00022999,2]
[313046731,1706692245854,-7755.17732206,0.00023,2]
[313046732,1706692245880,-2334.58989703,0.00023,2]
[313046733,1706692245891,-12493.05250589,0.00023,2]
[313046734,1706692245940,-11654.99999974,0.00023,2]
[313046735,1706692246029,-768.06384375,0.00023,2]
[313046736,1706692246041,-480.00000016,0.00023,2]
[313046737,1706692247346,-302.29212228,0.00023,2]
[313046738,1706692247406,-15565.60955824,0.00023,2]
[313046739,1706692247417,-425.86724695,0.00023,2]
[313046741,1706692247935,622.39886001,0.00022079,2]
[313046742,1706692304299,611.63865286,0.00022079,2]
[313046743,1706692326308,611.63865286,0.00022079,2]
[313046744,1706692348821,611.63865286,0.00022079,2]
[313046745,1706692366813,611.63865286,0.00022079,2]
[313046746,1706692386814,236.8996727,0.00022079,2]
[313046747,1706692469557,1280.9038446,0.00022079,5]
[313046748,1706692470855,245.76171874,0.00020388,2]
[313046749,1706692471086,293.38916151,0.00022079,2]
[313046750,1706692471865,155.0,0.00022079,2]
[313046751,1706692473177,1039.32025311,0.00022079,2]
[313046752,1706692474354,848.83921823,0.00022079,2]
[313046753,1706692474699,209.66340218,0.00022079,2]
[313046754,1706692475495,1230.05062968,0.00020384,2]
[313046755,1706692476475,5204.41118884,0.00022079,2]
[313046756,1706692476525,526.56184905,0.00022078,2]
[313046757,1706692478225,1122.77547519,0.00022079,2]
[313046758,1706692478394,3197.13386433,0.00021743,2]
[313046759,1706692478827,213.88589151,0.00022079,2]
[313046760,1706692479634,534.63116618,0.00022079,2]
[313046761,1706692480235,4164.75240448,0.00016559,2]
[313046762,1706692481520,859.05206645,0.00022079,2]
[313046763,1706692481744,664.06710244,0.00022079,4]
[313046764,1706692482420,564.21471201,0.00020158,2]
[313046765,1706692483553,500.0,0.00022079,2]
[313046766,1706692484260,1025.76280394,0.00022079,2]
[313046767,1706692484560,2186.39244281,0.00021858,2]
[313046768,1706692485286,7453.56994304,0.00020384,5]
[313046769,1706692486917,267.4127316,0.00022079,2]
[313046770,1706692486994,156.17255457,0.00020384,2]
[313046771,1706692491580,1280.9038446,0.00022079,5]
[313046772,1706692492137,5204.41118884,0.00022079,2]
[313046773,1706692494213,297.66991151,0.00022079,2]
[313046774,1706692494348,848.83921823,0.00022079,2]
[313046775,1706692495867,155.0,0.00022079,2]
[313046776,1706692497490,692.31338813,0.00020388,2]
[313046777,1706692499505,810.1516848,0.00022079,2]
[313046778,1706692499608,311.14270125,0.00022079,2]
[313046779,1706692500554,2186.39244281,0.00021858,2]
[313046780,1706692502289,1027.55956204,0.00022079,2]
[313046781,1706692504242,4164.75240448,0.00016559,2]
[313046782,1706692508150,5204.41118884,0.00022079,2]
[313046783,1706692510379,220.41136649,0.00022079,2]
[313046784,1706692511540,1419.19997354,0.00022079,5]
[313046785,1706692511866,155.0,0.00022079,2]
[313046786,1706692512350,868.09004092,0.00022079,2]
[313046787,1706692520572,221.64670295,0.00021858,2]
[313046788,1706692521746,732.18690129,0.00021,2]
[313046789,1706692524225,1053.04292986,0.00016559,2]
[313046790,1706692528659,167.90617382,0.00022079,2]
[313046791,1706692528683,2174.78270792,0.00022079,2]
[313046792,1706692528704,2861.7223071,0.00022079,2]
[313046793,1706692535860,160.41886282,0.00022079,2]
[313046794,1706692539435,-499.39583585,0.00022546,2]
[313046795,1706692539455,-500.0,0.00022646,2]
[313046796,1706692539474,-4257.98615526,0.00022646,2]
[313046797,1706692539495,-33848.13009892,0.00022646,2]
[313046798,1706692539514,-358.43337229,0.00022647,2]
[313046799,1706692539534,-4227.78860198,0.00022647,2]
[313046800,1706692539557,-150.0,0.00022647,2]
[313046801,1706692539577,-1000.0,0.00022648,2]
[313046802,1706692539598,-2787.3959821,0.00022649,2]
[313046803,1706692539620,-282.08995367,0.00022649,2]
[313046804,1706692539641,-4380.26937689,0.00022649,2]
[313046805,1706692539661,-338.48887294,0.00022649,2]
[313046806,1706692539682,-279.99458956,0.00022649,2]
[313046807,1706692539701,-294.1014109,0.00022649,2]
[313046808,1706692539720,-532.96541203,0.00022649,2]
[313046809,1706692539739,-4498.70235005,0.0002265,2]
[313046810,1706692539759,-1048.55806349,0.00022653,2]
[313046811,1706692539778,-4283.36490793,0.00022653,2]
[313046812,1706692539800,-869.18335814,0.00022653,2]
[313046813,1706692539819,-505.05818019,0.00022654,2]
[313046814,1706692539839,-3037.25810563,0.00022654,2]
[313046815,1706692539860,-56451.21744067,0.00022655,2]
[313046816,1706692539881,-162.56749989,0.00022898,2]
[313046817,1706692539902,-37783.166,0.000229,2]
[313046818,1706692539922,-8204.0065,0.000229,2]
[313046819,1706692539943,-214769.7909,0.000229,2]
[313046820,1706692539962,-151.43,0.00022993,2]
[313046821,1706692539982,-2956.66458656,0.00022998,2]
[313046822,1706692540002,-275.41820583,0.00022998,2]
[313046823,1706692540024,-301.89135144,0.00022998,2]
[313046824,1706692540049,-8400.42876777,0.00022998,2]
[313046825,1706692540069,-4634.84004218,0.00022998,2]
[313046826,1706692540089,-628.30579649,0.00022999,2]
[313046827,1706692540110,-237.24603119,0.00022999,2]
[313046828,1706692540131,-4457.63565314,0.00022999,2]
[313046829,1706692540154,-342510.44605997,0.00023,2]
[313046830,1706692540174,-2000.0,0.00023,2]
[313046831,1706692540194,-200.0,0.00023,2]
[313046832,1706692546191,932.93860142,0.00022079,2]
[313046833,1706692551372,3760.69561897,0.00022646,2]
[313046834,1706692557065,176.49,0.00016712,2]
[313046835,1706692572224,477.7888,0.000228,2]
[313046836,1706692601879,280.4212,0.00022552,2]
[313046837,1706692676163,407.5349,0.000228,2]
[313046838,1706692983631,150.0,0.00022662,2]
[313046839,1706693065244,155.0,0.00022662,2]
[313046840,1706693065949,535.20502537,0.00022662,2]
[313046841,1706693066209,5204.41118884,0.00022662,2]
[313046842,1706693066767,4253.14559991,0.00022662,2]
[313046843,1706693067005,19017.67593218,0.00022662,2]
[313046844,1706693068861,155.0,0.00022662,2]
[313046845,1706693069648,533.37470322,0.00022662,2]
[313046846,1706693070248,156.7505152,0.0002,2]
[313046847,1706693071816,808.63102708,0.00022662,2]
[313046848,1706693073146,362.084026,0.00022662,2]
[313046849,1706693073822,1099.06361557,0.00022662,2]
[313046850,1706693075248,1036.10780751,0.00022662,2]
[313046851,1706693077664,421.03960501,0.00022297,2]
[313046852,1706693078320,1122.77547519,0.00022662,2]
[313046853,1706693080207,3134.76429599,0.00022065,2]
[313046854,1706693080542,848.83921823,0.00022662,2]
[313046855,1706693080925,562.1073315,0.00020671,2]
[313046856,1706693081393,235.47214903,0.00022662,2]
[313046857,1706693081527,19017.67593218,0.00022662,2]
[313046858,1706693082010,155.0,0.00022662,2]
[313046859,1706693084863,155.0,0.00022662,2]
[313046860,1706693085948,535.20502537,0.00022662,2]
[313046861,1706693088208,3067.06683505,0.00022662,2]
[313046862,1706693089159,367.64406768,0.00022662,2]
[313046863,1706693091811,808.63102708,0.00022662,2]
[313046864,1706693094320,1122.77547519,0.00022662,2]
[313046865,1706693095648,421.03960501,0.00022295,2]
[313046866,1706693096484,417.3967963,0.00020669,2]
[313046867,1706693097425,235.47214903,0.00022662,2]
[313046868,1706693097512,1169.1474999,0.00022662,2]
[313046869,1706693099245,1036.10780751,0.00022662,2]
[313046870,1706693100187,2748.11018164,0.00022063,2]
[313046871,1706693100542,289.25075237,0.00022662,2]
[313046872,1706693102859,220.41371843,0.00022662,2]
[313046873,1706693105942,535.20502537,0.00022662,2]
[313046874,1706693109819,814.32002419,0.00022662,2]
[313046875,1706693114710,376.81666608,0.00022662,2]
[313046876,1706693115271,586.02142609,0.00022662,2]
[313046877,1706693115648,156.31433627,0.00022295,2]
[313046878,1706693117386,234.38226784,0.00022662,2]
[313046879,1706693125940,535.20502537,0.00022662,2]
[313046880,1706693140178,150.0,0.00022226,2]
[313046881,1706693140667,11775.217763,0.00022989,2]
[313046882,1706693141454,150.0,0.00022774,2]
[313046883,1706693141965,538.00296625,0.00022662,2]
[313046884,1706693235362,200.0,0.00025822,120]
[313046885,1706693235706,200.0,0.0002905,120]
[313046886,1706693288909,162.44061602,0.00022923,2]
[313046887,1706693327641,619.12907045,0.00022916,2]
[313046888,1706693351355,173.89,0.00019804,2]
[313046889,1706693351670,173.89,0.00022279,2]
[313046890,1706693409829,-2348.77144555,0.00023001,2]
[313046891,1706693409851,-215.68669268,0.00023001,2]
[313046892,1706693409872,-162.66203163,0.00023001,2]
[313046893,1706693409892,-203.22221247,0.00023001,2]
[313046894,1706693409912,-358.43337229,0.00023002,2]
[313046895,1706693409931,-2605.00032238,0.00023002,2]
[313046896,1706693409952,-197.29019107,0.00023002,2]
[313046897,1706693409973,-4638.55770228,0.00023002,2]
[313046898,1706693409996,-5228.78655032,0.00023002,2]
[313046899,1706693410017,-372.20096777,0.00023003,2]
[313046900,1706693410037,-518.122138,0.00023003,2]
[313046901,1706693410057,-1139.78306733,0.00023003,2]
[313046902,1706693410079,-300.0,0.00023003,2]
[313046903,1706693410098,-150.0,0.00023003,2]
[313046904,1706693410118,-247.34763938,0.00023004,2]
[313046905,1706693410138,-212.25793733,0.00023004,2]
[313046906,1706693410158,-172.36279521,0.00023004,2]
[313046907,1706693410177,-2482.12405516,0.00023004,2]
[313046908,1706693410198,-362.66839239,0.00023004,2]
[313046909,1706693410218,-159.23228713,0.00023004,2]
[313046910,1706693410238,-533.65490605,0.00023005,2]
[313046911,1706693410260,-3338.37650623,0.00023005,2]
[313046912,1706693410281,-3285.32954973,0.00023005,2]
[313046913,1706693410303,-500.0,0.00023005,2]
[313046914,1706693410324,-1206.90050166,0.00023005,2]
[313046915,1706693410344,-699.81053348,0.00023005,2]
[313046916,1706693410367,-525.44510824,0.00023005,2]
[313046917,1706693410387,-1259.57085833,0.00023005,2]
[313046918,1706693410407,-768.69623108,0.00023006,2]
[313046919,1706693410427,-2618.80757545,0.00023006,2]